lending/lending_fUSD_20240705
["ID","MTS","AMOUNT","RATE_DAILY","PERIOD"]
[331309709,1720210238153,-151.0,0.00015985,2]
[331309710,1720210238162,-151.0,0.00015985,2]
[331309711,1720210238172,-151.0,0.00015985,2]
[331309712,1720210238182,-151.0,0.00015985,2]
[331309713,1720210238191,-151.0,0.00016172,2]
[331309714,1720210238201,-151.0,0.00016172,2]
[331309715,1720210238211,-151.0,0.00016172,2]
[331309716,1720210238220,-5652.687145,0.00016172,2]
[331309717,1720210238230,-151.0,0.00016172,2]
[331309718,1720210238241,-151.0,0.00016172,2]
[331309719,1720210238252,-5652.687145,0.00016172,2]
[331309720,1720210238262,-151.0,0.00016172,2]
[331309721,1720210238272,-151.0,0.00016172,2]
[331309722,1720210238287,-906.12919,0.00016172,2]
[331309723,1720210238297,-906.12919,0.00016172,2]
[331309724,1720210238306,-151.0,0.00016172,2]
[331309725,1720210238315,-355.260196,0.00016172,2]
[331309726,1720210238325,-355.260196,0.00016172,2]
[331309727,1720210238336,-151.0,0.00016172,2]
[331309728,1720210238348,-619.0,0.00016198,2]
[331309729,1720210238358,-801.0,0.00016198,2]
[331309730,1720210238368,-449.73,0.00016198,2]
[331309731,1720210238378,-283.0,0.00016198,2]
[331309732,1720210238388,-151.0,0.00016198,2]
[331309733,1720210238399,-151.0,0.00016198,2]
[331309734,1720210238423,-154.555716,0.00016198,2]
[331309735,1720210238441,-151.0,0.00016198,2]
[331309736,1720210238458,-151.0,0.00016198,2]
[331309737,1720210238469,-151.679305,0.00016198,2]
[331309738,1720210238479,-151.0,0.00016198,2]
[331309739,1720210238490,-151.0,0.00016198,2]
[331309740,1720210238500,-151.0,0.00016198,2]
[331309741,1720210238510,-151.0,0.00016198,2]
[331309742,1720210238521,-151.0,0.00016198,2]
[331309743,1720210238532,-151.0,0.00016198,2]
[331309744,1720210238542,-151.0,0.00016198,2]
[331309745,1720210238553,-151.0,0.00016198,2]
[331309746,1720210238564,-151.0,0.00016198,2]
[331309747,1720210238574,-154.787958,0.00016198,2]
[331309748,1720210238583,-151.0,0.00016198,2]
[331309749,1720210238593,-151.0,0.00016198,2]
[331309750,1720210238603,-154.787958,0.00016198,2]
[331309751,1720210238613,-151.0,0.00016198,2]
[331309752,1720210238623,-151.0,0.00016198,2]
[331309753,1720210238633,-701.458917,0.00016198,2]
[331309754,1720210238643,-151.0,0.00016198,2]
[331309755,1720210238653,-701.458917,0.00016198,2]
[331309756,1720210238663,-151.0,0.00016198,2]
[331309757,1720210238673,-151.0,0.00016198,2]
[331309758,1720210238684,-379.162844,0.00016198,2]
[331309759,1720210238694,-379.162844,0.00016198,2]
[331309760,1720210238705,-211.345426,0.00016198,2]
[331309761,1720210238716,-151.0,0.00016198,2]
[331309762,1720210238726,-151.0,0.00016198,2]
[331309763,1720210238735,-211.345426,0.00016198,2]
[331309764,1720210238747,-151.0,0.00016198,2]
[331309765,1720210238756,-151.0,0.00016198,2]
[331309766,1720210238766,-251.403773,0.00016198,2]
[331309767,1720210238775,-251.403773,0.00016198,2]
[331309768,1720210238785,-151.0,0.00016198,2]
[331309769,1720210238794,-151.0,0.00016198,2]
[331309770,1720210238804,-151.0,0.00016198,2]
[331309771,1720210238814,-207.434169,0.00016198,2]
[331309772,1720210238824,-151.0,0.00016198,2]
[331309773,1720210238834,-151.0,0.00016198,2]
[331309774,1720210238844,-151.0,0.00016198,2]
[331309775,1720210238855,-151.0,0.00016198,2]
[331309776,1720210238865,-295.52212,0.00016198,2]
[331309777,1720210238874,-151.0,0.00016198,2]
[331309778,1720210238884,-151.0,0.00016198,2]
[331309779,1720210238895,-151.0,0.00016198,2]
[331309780,1720210238905,-151.0,0.00016198,2]
[331309781,1720210238915,-212.042568,0.00016198,2]
[331309782,1720210238925,-212.042568,0.00016198,2]
[331309783,1720210238935,-151.0,0.00016198,2]
[331309784,1720210238945,-151.0,0.00016198,2]
[331309785,1720210238955,-151.0,0.00016198,2]
[331309786,1720210238964,-381.937717,0.00016198,2]
[331309787,1720210238974,-381.937717,0.00016198,2]
[331309788,1720210238983,-5811.0,0.0001628,2]
[331309789,1720210238997,-2328.293,0.0001628,2]
[331309790,1720210239007,-1070.0,0.0001628,2]
[331309791,1720210239017,-606.28754383,0.00016325,2]
[331309792,1720210239026,-189.4676,0.0001636,2]
[331309793,1720210239037,-363.533786,0.00016438,2]
[331309794,1720210239047,-363.533786,0.00016438,2]
[331309795,1720210239058,-363.533786,0.00016438,2]
[331309796,1720210239068,-363.533786,0.00016438,2]
[331309797,1720210239079,-150.0,0.00016438,2]
[331309798,1720210239089,-150.0,0.00016438,2]
[331309799,1720210239098,-150.0,0.00016438,2]
[331309800,1720210239108,-150.0,0.00016438,2]
[331309801,1720210239121,-150.0,0.00016438,2]
[331309802,1720210239131,-150.0,0.00016438,2]
[331309803,1720210239143,-36.46538442,0.00016438,2]
[331309817,1720210239800,-113.53461558,0.00016438,2]
[331309819,1720210239812,-302.2,0.00016438,2]
[331309821,1720210239823,-150.0,0.00016438,2]
[331309823,1720210239834,-150.0,0.00016438,2]
[331309825,1720210239845,-153.68,0.00016438,2]
[331309828,1720210239856,-164.9,0.00016438,2]
[331309829,1720210239866,-188.42895001,0.00016477,2]
[331309831,1720210239876,-150.0,0.00016478,2]
[331309833,1720210239886,-150.0,0.00016478,2]
[331309835,1720210239896,-150.0,0.00016478,2]
[331309837,1720210239906,-283.459,0.00016478,2]
[331309839,1720210239915,-1250.0,0.00016478,2]
[331309841,1720210239925,-151.0,0.00016478,2]
[331309843,1720210239935,-151.307137,0.00016478,2]
[331309845,1720210239945,-151.0,0.00016478,2]
[331309847,1720210239955,-151.0,0.00016478,2]
[331309849,1720210239965,-151.0,0.00016478,2]
[331309851,1720210239976,-151.0,0.00016478,2]
[331309853,1720210239986,-151.0,0.00016478,2]
[331309855,1720210240000,-151.0,0.00016478,2]
[331309857,1720210240010,-151.0,0.00016478,2]
[331309859,1720210240020,-151.0,0.00016478,2]
[331309862,1720210240030,-151.0,0.00016478,2]
[331309864,1720210240042,-151.0,0.00016478,2]
[331309866,1720210240053,-151.0,0.00016478,2]
[331309867,1720210240063,-165.329841,0.00016478,2]
[331309869,1720210240074,-151.0,0.00016478,2]
[331309871,1720210240085,-163.231054,0.00016478,2]
[331309873,1720210240095,-151.0,0.00016478,2]
[331309875,1720210240104,-151.0,0.00016478,2]
[331309877,1720210240117,-151.0,0.00016478,2]
[331309880,1720210240127,-250.49741,0.00016478,2]
[331309882,1720210240137,-151.0,0.00016478,2]
[331309883,1720210240147,-250.0,0.00016478,2]
[331309885,1720210240157,-151.0,0.00016478,2]
[331309887,1720210240168,-151.0,0.00016478,2]
[331309889,1720210240177,-151.0,0.00016478,2]
[331309891,1720210240187,-183.30657481,0.00016478,2]
[331309894,1720210240200,-12.83494519,0.00016478,2]
[331309895,1720210240211,-151.0,0.00016478,2]
[331309896,1720210240221,-131.61319665,0.00016478,2]
[331309897,1720210240233,-19.38680335,0.00016478,2]
[331309898,1720210240243,-151.0,0.00016478,2]
[331309899,1720210240253,-151.0,0.00016478,2]
[331309900,1720210240264,-151.0,0.00016478,2]
[331309901,1720210240274,-151.0,0.00016478,2]
[331309902,1720210240284,-151.0,0.00016478,2]
[331309903,1720210240294,-151.0,0.00016478,2]
[331309905,1720210240305,-151.0,0.00016478,2]
[331309906,1720210240315,-24.62314196,0.00016478,2]
[331309908,1720210240328,-130.16481604,0.00016478,2]
[331309910,1720210240342,-242.305004,0.00016478,2]
[331309912,1720210240356,-151.0,0.00016478,2]
[331309914,1720210240367,-154.787958,0.00016478,2]
[331309916,1720210240377,-201.691938,0.00016478,2]
[331309917,1720210240389,-151.0,0.00016478,2]
[331309918,1720210240399,-701.458917,0.00016478,2]
[331309919,1720210240409,-178.82703797,0.00016478,2]
[331309957,1720210241279,-306.92,0.00013989,2]
[331309982,1720210241519,-131.1915069,0.00013989,2]
[331309984,1720210241531,-253.66359601,0.00015656,2]
[331310004,1720210241727,-834.77756118,0.00015656,2]
[331310006,1720210241739,-522.63187903,0.00016478,2]
[331310009,1720210241750,-151.0,0.00016478,2]
[331310011,1720210241762,-151.0,0.00016478,2]
[331310013,1720210241774,-130.40369903,0.00016478,2]
[331310019,1720210241817,-248.75914497,0.00016478,2]
[331310021,1720210241830,-144.0702439,0.00016478,2]
[331310324,1720210247529,-151.0,0.000149,2]
[331310325,1720210247539,-151.0,0.000149,2]
[331310326,1720210247549,-151.0,0.00015,2]
[331310327,1720210247558,-151.0,0.00015,2]
[331310328,1720210247567,-151.0,0.00015,2]
[331310329,1720210247577,-880.38912653,0.00016041,2]
[331310330,1720210247586,-151.0,0.00016198,2]
[331310331,1720210247596,-164.9,0.00016438,2]
[331310332,1720210247606,-235.0926001,0.00016478,2]
[331310333,1720210247615,-379.162844,0.00016478,2]
[331310334,1720210247625,-379.162844,0.00016478,2]
[331310335,1720210247635,-211.345426,0.00016478,2]
[331310336,1720210247646,-211.345426,0.00016478,2]
[331310337,1720210247660,-151.0,0.00016478,2]
[331310338,1720210247671,-151.0,0.00016478,2]
[331310339,1720210247680,-211.345426,0.00016478,2]
[331310340,1720210247690,-292.689607,0.00016478,2]
[331310341,1720210247699,-211.345426,0.00016478,2]
[331310342,1720210247708,-151.0,0.00016478,2]
[331310343,1720210247718,-151.0,0.00016478,2]
[331310344,1720210247727,-151.0,0.00016478,2]
[331310345,1720210247737,-251.403773,0.00016478,2]
[331310346,1720210247747,-251.403773,0.00016478,2]
[331310347,1720210247758,-251.403773,0.00016478,2]
[331310348,1720210247767,-67.50295537,0.00016478,2]
[331310349,1720210247837,-151.0,0.00015,2]
[331310350,1720210247847,-183.90081763,0.00016478,2]
[331310351,1720210247857,-197.83238101,0.00016478,2]
[331310352,1720210247908,-165.70140499,0.00016478,2]
[331310353,1720210247918,-363.533786,0.00016478,2]
[331310354,1720210247928,-241.49915,0.00016478,2]
[331310355,1720210247938,-363.533786,0.00016478,2]
[331310356,1720210247947,-363.533786,0.00016478,2]
[331310357,1720210247957,-8.6381342,0.00016478,2]
[331310361,1720210424025,8071.60206644,0.00011199,2]
[331310363,1720210483681,9548.69411974,0.00011199,2]
[331310364,1720210572755,748.26016246,0.00011199,2]
[331310365,1720210627138,193.62934922,0.00011199,2]
[331310366,1720210637293,158.25040673,0.00011199,2]
[331310367,1720210654882,155.0,0.00011199,2]
[331310368,1720210661802,190.39409018,0.00011199,2]
[331310369,1720210674747,369.07656389,0.00011199,2]
[331310370,1720210683770,202.44445,0.00011199,2]
[331310371,1720210693198,379.04217238,0.00011199,2]
[331310372,1720210693867,155.14682893,0.00011199,2]
[331310373,1720210694236,155.61648877,0.00011199,2]
[331310374,1720210707357,251.7788339,0.00011199,2]
[331310375,1720210710251,211.46410949,0.00011199,2]
[331310376,1720210712306,196.12854204,0.00011199,2]
[331310377,1720210847462,227.17477303,0.00011199,2]
[331310378,1720210967442,2874.4150749,0.00011199,2]
[331310379,1720210991082,155.28848889,0.00011199,2]
[331310380,1720211241156,189.9449251,0.00011199,2]
[331310396,1720211255405,306.92,0.00011199,2]
[331310519,1720211294288,227.17477303,0.00011199,2]
[331310520,1720211302672,194.87156642,0.00011199,2]
[331310537,1720211433842,-2373.3863,0.000149,2]
[331310538,1720211433877,-682.4465,0.000149,2]
[331310539,1720211433887,-120.6712,0.00014932,2]
[331310540,1720211433898,-436.1588,0.00014932,2]
[331310541,1720211433908,-155.0,0.00014966,2]
[331310542,1720211433917,-649.80401464,0.00015579,2]
[331310543,1720211434733,-4033.17742418,0.00015579,2]
[331310562,1720211440781,-462.25325629,0.00015579,2]
[331310564,1720211440791,-497.02520083,0.00015579,2]
[331310566,1720211440803,-1686.0,0.00016,2]
[331310568,1720211440812,-732.72154288,0.00016148,2]
[331310713,1720211442287,-324.79943116,0.00016148,2]
[331310715,1720211442300,-1118.05288438,0.00016148,2]
[331310717,1720211442311,-164.9,0.000162,2]
[331310719,1720211442322,-150.0,0.00016261,2]
[331310721,1720211442332,-499.99,0.00016308,2]
[331310723,1720211442343,-150.99,0.00016378,2]
[331310725,1720211442353,-1384.9754,0.00016378,2]
[331310727,1720211442363,-424.44,0.00016438,2]
[331310729,1720211442372,-150.0,0.00016438,2]
[331310730,1720211442383,-424.44,0.00016438,2]
[331310732,1720211442392,-150.0,0.00016438,2]
[331310734,1720211442402,-150.0,0.00016438,2]
[331310736,1720211442417,-169.86,0.00016438,2]
[331310738,1720211442427,-150.0,0.00016438,2]
[331310740,1720211442436,-164.9,0.00016438,2]
[331310742,1720211442447,-164.9,0.00016438,2]
[331310744,1720211442457,-150.0,0.00016438,2]
[331310746,1720211442467,-2791.69428461,0.00016477,2]
[331310748,1720211442476,-210.0,0.00016477,2]
[331310750,1720211442487,-3037.65799985,0.00016478,2]
[331310776,1720211442828,-150.0,0.00016276,2]
[331310777,1720211442837,-2051.2276,0.00016478,2]
[331310779,1720211443457,-19565.06546246,0.00016478,2]
[331310780,1720211443466,-169.85882371,0.00016478,2]
[331310781,1720211443479,-152.23211261,0.00016478,2]
[331310782,1720211443492,-2000.0,0.00016478,2]
[331310783,1720211443503,-479.59466,0.00016478,2]
[331310784,1720211443512,-11484.0,0.000165,3]
[331310786,1720211443523,-16966.29498718,0.0001669,2]
[331310788,1720211443532,-275.0,0.000167,3]
[331310790,1720211443544,-2372.0,0.000167,3]
[331310792,1720211443555,-854.33,0.00016712,2]
[331310794,1720211443566,-723.61,0.00016724,2]
[331310796,1720211443576,-1268.48,0.00016725,2]
[331310798,1720211443586,-746.129,0.00016725,2]
[331310800,1720211443596,-615.0,0.00016725,2]
[331310802,1720211443606,-449.0,0.00016725,2]
[331310804,1720211443615,-169.17,0.00016735,2]
[331310806,1720211443625,-150.0,0.00016789,2]
[331310808,1720211443635,-346.03148912,0.00016808,2]
[331310811,1720211443644,-155.0,0.00016808,2]
[331310813,1720211443655,-256.73,0.00016824,2]
[331310815,1720211443665,-250.0,0.00016844,2]
[331310817,1720211443675,-8813.14,0.00016852,2]
[331310819,1720211443685,-231.09,0.00016871,2]
[331310821,1720211443695,-600.0,0.00016874,2]
[331310823,1720211443705,-250.0,0.00016894,2]
[331310825,1720211443716,-1215.17,0.00016964,2]
[331310827,1720211443726,-150.00000001,0.00016989,2]
[331310829,1720211443738,-153.39,0.00017024,2]
[331310831,1720211443748,-190.9388,0.00017064,2]
[331310833,1720211443757,-744.59607224,0.00017091,2]
[331310835,1720211443768,-11484.0,0.000171,5]
[331310837,1720211443777,-153.39,0.00017151,2]
[331310839,1720211443787,-556.83,0.00017196,2]
[331310841,1720211443797,-2494.89645951,0.00017199,2]
[331310843,1720211443806,-400.0,0.00017223,2]
[331310845,1720211443816,-528.58,0.0001726,2]
[331310847,1720211443825,-424.44,0.0001726,2]
[331310849,1720211443835,-164.9,0.0001726,2]
[331310851,1720211443844,-164.9,0.0001726,2]
[331310853,1720211443853,-164.9,0.0001726,2]
[331310855,1720211443863,-164.9,0.0001726,2]
[331310857,1720211443872,-164.9,0.0001726,2]
[331310859,1720211443883,-164.9,0.0001726,2]
[331310861,1720211443893,-150.0,0.0001726,2]
[331310863,1720211443903,-318.62,0.0001726,2]
[331310865,1720211443913,-354.94,0.0001726,2]
[331310867,1720211443922,-354.94,0.0001726,2]
[331310869,1720211443932,-164.9,0.0001726,2]
[331310871,1720211443941,-157.32,0.0001726,2]
[331310873,1720211443951,-150.0,0.0001726,2]
[331310875,1720211443961,-275.45,0.0001726,2]
[331310877,1720211443971,-150.0,0.0001726,2]
[331310879,1720211443981,-150.0,0.0001726,2]
[331310881,1720211443991,-329.63,0.0001726,2]
[331310883,1720211444000,-150.0,0.0001726,2]
[331310885,1720211444010,-153.39,0.00017278,2]
[331310887,1720211444020,-829.0,0.00017303,2]
[331310889,1720211444029,-153.39,0.00017405,2]
[331310891,1720211444039,-153.39,0.00017531,2]
[331310893,1720211444048,-365.05601346,0.00017533,2]
[331310895,1720211444059,-153.39,0.00017658,2]
[331310897,1720211444069,-153.39,0.00017785,2]
[331310899,1720211444080,-153.39,0.00017912,2]
[331310901,1720211444090,-442.73989055,0.00017925,2]
[331310903,1720211444100,-528.58,0.00018082,2]
[331310905,1720211444110,-528.58,0.00018082,2]
[331310907,1720211444120,-150.0,0.00018082,2]
[331310909,1720211444129,-150.0,0.00018082,2]
[331310911,1720211444139,-424.44,0.00018082,2]
[331310913,1720211444149,-150.0,0.00018082,2]
[331310915,1720211444158,-150.0,0.00018082,2]
[331310917,1720211444169,-150.0,0.00018082,2]
[331310919,1720211444180,-150.0,0.00018082,2]
[331310922,1720211444190,-354.94,0.00018082,2]
[331310924,1720211444200,-377.38,0.00018082,2]
[331310926,1720211444209,-424.44,0.00018082,2]
[331310927,1720211444222,-209.09,0.00018082,2]
[331310930,1720211444232,-1142.20097555,0.00018424,2]
[331310931,1720211444242,-1060.23656,0.00018424,2]
[331310933,1720211444251,-21033.8276,0.00018477,2]
[331310935,1720211444261,-150.0,0.00018498,2]
[331310937,1720211444271,-2000.0,0.000185,6]
[331310939,1720211444281,-150.0,0.00018504,2]
[331310942,1720211444292,-150.0,0.00018504,2]
[331310944,1720211444302,-936.3976,0.00018504,2]
[331310946,1720211444312,-150.0,0.00018512,2]
[331310948,1720211444322,-150.0,0.00018516,2]
[331310950,1720211444332,-150.0,0.00018519,2]
[331310952,1720211444341,-150.0,0.00018519,2]
[331310954,1720211444351,-150.0,0.00018519,2]
[331310956,1720211444362,-150.0,0.00018521,2]
[331310958,1720211444371,-150.0,0.00018523,2]
[331310960,1720211444382,-150.0,0.00018526,2]
[331310962,1720211444392,-150.0,0.00018534,2]
[331310964,1720211444401,-150.0,0.00018536,2]
[331310966,1720211444415,-150.0,0.00018537,2]
[331310968,1720211444425,-150.0,0.00018541,2]
[331310970,1720211444435,-150.0,0.00018546,2]
[331310972,1720211444445,-150.0,0.00018546,2]
[331310974,1720211444455,-150.0,0.00018551,2]
[331310976,1720211444465,-150.0,0.00018551,2]
[331310978,1720211444475,-150.0,0.00018557,2]
[331310980,1720211444484,-150.0,0.00018558,2]
[331310982,1720211444497,-150.0,0.00018558,2]
[331310984,1720211444508,-150.0,0.0001856,2]
[331310986,1720211444518,-150.0,0.00018569,2]
[331310988,1720211444528,-150.0,0.00018569,2]
[331310991,1720211444542,-150.0,0.0001857,2]
[331310993,1720211444553,-150.0,0.00018571,2]
[331310994,1720211444563,-150.0,0.00018576,2]
[331310997,1720211444574,-150.0,0.0001858,2]
[331310999,1720211444584,-150.0,0.0001859,2]
[331311001,1720211444597,-150.0,0.00018594,2]
[331311003,1720211444609,-150.0,0.00018594,2]
[331311005,1720211444619,-150.0,0.00018595,2]
[331311007,1720211444629,-150.0,0.000186,2]
[331311009,1720211444639,-4000.0,0.000186,6]
[331311011,1720211444649,-150.0,0.00018604,2]
[331311013,1720211444659,-25000.0,0.00018604,2]
[331311015,1720211444670,-150.0,0.00018606,2]
[331311017,1720211444680,-150.0,0.00018606,2]
[331311019,1720211444691,-150.0,0.0001861,2]
[331311021,1720211444701,-150.0,0.00018613,2]
[331311023,1720211444711,-150.0,0.00018616,2]
[331311025,1720211444721,-150.0,0.00018622,2]
[331311027,1720211444731,-150.0,0.00018623,2]
[331311029,1720211444741,-150.0,0.00018624,2]
[331311031,1720211444751,-150.0,0.00018624,2]
[331311033,1720211444761,-150.0,0.00018625,2]
[331311035,1720211444770,-150.0,0.00018632,2]
[331311037,1720211444780,-150.0,0.00018647,2]
[331311039,1720211444790,-500.0,0.00018649,2]
[331311041,1720211444802,-200.0,0.00018649,2]
[331311043,1720211444813,-500.0,0.00018649,2]
[331311045,1720211444823,-500.0,0.0001865,2]
[331311047,1720211444833,-500.0,0.0001865,2]
[331311049,1720211444844,-200.0,0.0001865,2]
[331311051,1720211444854,-200.0,0.0001865,2]
[331311053,1720211444863,-150.0,0.0001865,2]
[331311055,1720211444873,-150.0,0.00018652,2]
[331311057,1720211444883,-150.0,0.00018663,2]
[331311060,1720211444893,-150.0,0.00018666,2]
[331311064,1720211444903,-150.0,0.0001867,2]
[331311068,1720211444912,-150.0,0.00018672,2]
[331311073,1720211444923,-150.0,0.00018673,2]
[331311077,1720211444932,-150.0,0.00018673,2]
[331311081,1720211444942,-150.0,0.00018676,2]
[331311085,1720211444952,-150.0,0.00018676,2]
[331311088,1720211444962,-150.0,0.00018679,2]
[331311090,1720211444971,-150.0,0.00018679,2]
[331311092,1720211444981,-150.0,0.0001868,2]
[331311094,1720211444992,-150.0,0.00018682,2]
[331311096,1720211445001,-992.0,0.00018684,2]
[331311098,1720211445011,-150.0,0.00018684,2]
[331311100,1720211445021,-150.0,0.00018684,2]
[331311102,1720211445031,-150.0,0.00018689,2]
[331311104,1720211445040,-150.0,0.00018689,2]
[331311106,1720211445050,-150.0,0.0001869,2]
[331311108,1720211445060,-150.0,0.00018693,2]
[331311110,1720211445070,-150.0,0.00018697,2]
[331311112,1720211445080,-150.0,0.00018697,2]
[331311114,1720211445090,-6000.0,0.000187,6]
[331311116,1720211445100,-150.0,0.00018705,2]
[331311118,1720211445110,-150.0,0.00018705,2]
[331311120,1720211445120,-150.0,0.00018705,2]
[331311122,1720211445129,-151.0,0.00018705,2]
[331311124,1720211445139,-151.0,0.00018705,2]
[331311126,1720211445149,-151.0,0.00018705,2]
[331311128,1720211445159,-151.0,0.00018705,2]
[331311130,1720211445169,-151.0,0.00018705,2]
[331311132,1720211445179,-151.0,0.00018705,2]
[331311134,1720211445189,-151.0,0.00018705,2]
[331311136,1720211445199,-151.0,0.00018705,2]
[331311138,1720211445209,-151.0,0.00018705,2]
[331311141,1720211445219,-151.0,0.00018705,2]
[331311143,1720211445229,-151.0,0.00018705,2]
[331311145,1720211445239,-151.0,0.00018705,2]
[331311147,1720211445252,-151.0,0.00018705,2]
[331311149,1720211445261,-151.0,0.00018705,2]
[331311151,1720211445271,-151.0,0.00018705,2]
[331311153,1720211445280,-150.0,0.00018706,2]
[331311155,1720211445290,-150.0,0.00018707,2]
[331311157,1720211445300,-302.99584182,0.0001871,2]
[331311159,1720211445310,-150.0,0.00018711,2]
[331311161,1720211445319,-150.0,0.00018714,2]
[331311163,1720211445329,-296.91047268,0.00018719,2]
[331311165,1720211445338,-150.0,0.00018721,2]
[331311167,1720211445348,-151.0,0.00018729,2]
[331311169,1720211445357,-150.0,0.00018729,2]
[331311171,1720211445366,-150.0,0.00018737,2]
[331311173,1720211445376,-150.0,0.00018737,2]
[331311175,1720211445386,-150.0,0.00018745,2]
[331311177,1720211445396,-150.0,0.00018745,2]
[331311179,1720211445407,-150.0,0.00018751,2]
[331311181,1720211445421,-237.90463,0.00018752,2]
[331311183,1720211445430,-151.0,0.00018752,2]
[331311185,1720211445440,-150.0,0.00018754,2]
[331311187,1720211445449,-150.0,0.00018755,2]
[331311189,1720211445462,-150.0,0.00018759,2]
[331311191,1720211445472,-150.0,0.00018761,2]
[331311193,1720211445482,-150.0,0.00018768,2]
[331311195,1720211445494,-150.0,0.00018768,2]
[331311197,1720211445503,-150.0,0.00018769,2]
[331311199,1720211445513,-151.0,0.00018789,2]
[331311201,1720211445523,-151.0,0.00018789,2]
[331311203,1720211445532,-2909.66931604,0.00018799,2]
[331311205,1720211445545,-172.41,0.000188,2]
[331311207,1720211445555,-491.0,0.000188,2]
[331311209,1720211445566,-216.0,0.000188,2]
[331311211,1720211445576,-164.01706803,0.000188,2]
[331311212,1720211445585,-151.0,0.000188,2]
[331311215,1720211445595,-179.25993922,0.000188,2]
[331311217,1720211445793,-151.0,0.000188,2]
[331311218,1720211445804,-491.021242,0.000188,2]
[331311219,1720211445814,-491.021242,0.000188,2]
[331311220,1720211445823,-151.0,0.000188,2]
[331311221,1720211445833,-151.0,0.000188,2]
[331311222,1720211445842,-178.25145725,0.000188,2]
[331311223,1720211445851,-151.0,0.000188,2]
[331311224,1720211445861,-176.59021447,0.000188,2]
[331311225,1720211445870,-151.0,0.000188,2]
[331311226,1720211445880,-176.364103,0.000188,2]
[331311227,1720211445889,-724.903352,0.000188,2]
[331311228,1720211445898,-724.903352,0.000188,2]
[331311229,1720211445908,-153.560193,0.000188,2]
[331311230,1720211445917,-151.0,0.000188,2]
[331311231,1720211445927,-284.208156,0.000188,2]
[331311232,1720211445936,-284.208156,0.000188,2]
[331311233,1720211445946,-660.29184495,0.000188,2]
[331311234,1720211445956,-2577.22683695,0.000188,2]
[331311235,1720211445966,-151.0,0.000188,2]
[331311236,1720211445975,-316.27074557,0.000188,2]
[331311237,1720211445984,-191.3178059,0.000188,2]
[331311238,1720211445994,-1271.20916316,0.000188,2]
[331311239,1720211446003,-688.63092299,0.000188,2]
[331311240,1720211446013,-7500.0,0.000188,2]
[331311241,1720211446023,-172.52775424,0.000188,3]
[331311242,1720211446032,-229.16263,0.000188,2]
[331311243,1720211446042,-151.0,0.000188,2]
[331311245,1720211446051,-229.16263,0.000188,2]
[331311246,1720211446062,-8100.0,0.000188,6]
[331311247,1720211446072,-174.59,0.00018849,30]
[331311248,1720211446083,-235.57778698,0.00018864,2]
[331311249,1720211446094,-227.497706,0.00018888,2]
[331311250,1720211446104,-227.497706,0.00018888,2]
[331311251,1720211446114,-151.0,0.00018888,2]
[331311252,1720211446123,-151.0,0.00018888,2]
[331311253,1720211446133,-151.0,0.00018888,2]